lending/lending_fUSD_20240510
["ID","MTS","AMOUNT","RATE_DAILY","PERIOD"]
[326768016,1715337057393,-500.0,0.00027397,4]
[326768017,1715337057403,-1941.56,0.00027397,4]
[326768018,1715337057412,-225.533974,0.00027397,7]
[326768019,1715337057421,-666.53,0.00027397,4]
[326768020,1715337057431,-225.533974,0.00027397,7]
[326768021,1715337057440,-225.533974,0.00027397,7]
[326768022,1715337057450,-225.533969,0.00027397,7]
[326768023,1715337057460,-500.0,0.00027397,4]
[326768024,1715337057469,-500.0,0.00027397,4]
[326768025,1715337057478,-500.0,0.00027397,4]
[326768026,1715337057487,-533.84746218,0.00027397,2]
[326768027,1715337057496,-995.97,0.00027397,4]
[326768028,1715337057506,-500.0,0.00027397,4]
[326768029,1715337057515,-1364.26,0.00027397,4]
[326768030,1715337057524,-2125.37,0.00027397,4]
[326768031,1715337057534,-805.95,0.00027397,4]
[326768032,1715337057544,-590.91,0.00027397,4]
[326768033,1715337057553,-4857.5,0.00027397,4]
[326768034,1715337057563,-500.0,0.00027397,4]
[326768035,1715337057572,-559.3,0.00027397,4]
[326768036,1715337057581,-1377.88,0.00027397,4]
[326768037,1715337057590,-1798.09,0.00027397,4]
[326768038,1715337057600,-2939.81,0.00027397,4]
[326768039,1715337057609,-554.72,0.00027397,4]
[326768040,1715337057619,-1249.12,0.00027397,4]
[326768041,1715337057628,-512.87,0.00027397,4]
[326768042,1715337057637,-506.25127519,0.00027397,4]
[326768043,1715337057647,-8106.86,0.00027397,4]
[326768044,1715337057656,-1569.95,0.00027397,4]
[326768045,1715337057665,-510.24,0.00027397,4]
[326768046,1715337057674,-831.78,0.00027397,4]
[326768047,1715337057683,-500.0,0.00027397,4]
[326768048,1715337057693,-296.45871922,0.00027397,4]
[326768049,1715337057702,-551.48,0.00027397,4]
[326768050,1715337057712,-726.83,0.00027397,4]
[326768051,1715337057721,-500.0,0.00027397,4]
[326768052,1715337057733,-1119.6,0.00027397,4]
[326768053,1715337057742,-500.0,0.00027397,4]
[326768054,1715337057752,-3273.18,0.00027397,4]
[326768055,1715337057761,-2287.17,0.00027397,4]
[326768056,1715337057772,-500.0,0.00027397,4]
[326768057,1715337057782,-503.37974144,0.00027397,4]
[326768058,1715337057791,-799.51,0.00027397,4]
[326768059,1715337057800,-500.0,0.00027397,4]
[326768060,1715337057812,-1254.45,0.00027397,4]
[326768061,1715337057822,-605.06,0.00027397,4]
[326768062,1715337057831,-2686.02,0.00027397,4]
[326768063,1715337057841,-2775.35,0.00027397,4]
[326768064,1715337057850,-2330.96,0.00027397,4]
[326768065,1715337057860,-166.112209,0.00027397,7]
[326768066,1715337057869,-166.112209,0.00027397,7]
[326768067,1715337057879,-166.112209,0.00027397,7]
[326768068,1715337057888,-166.112209,0.00027397,7]
[326768069,1715337057897,-166.112209,0.00027397,7]
[326768070,1715337057906,-599.82,0.00027397,4]
[326768071,1715337057915,-500.0,0.00027397,4]
[326768072,1715337057925,-617.64,0.00027397,4]
[326768073,1715337057934,-725.77,0.00027397,4]
[326768074,1715337057943,-166.112209,0.00027397,7]
[326768075,1715337057952,-1592.39,0.00027397,4]
[326768076,1715337057962,-166.112209,0.00027397,7]
[326768077,1715337057971,-166.112209,0.00027397,7]
[326768078,1715337057980,-1408.94,0.00027397,4]
[326768079,1715337057990,-166.112209,0.00027397,7]
[326768080,1715337057999,-166.112208,0.00027397,7]
[326768081,1715337058008,-524.44541028,0.00027397,4]
[326768082,1715337058018,-513.24432358,0.00027397,4]
[326768083,1715337058027,-151.0,0.00027397,5]
[326768084,1715337058036,-500.0,0.00027397,4]
[326768085,1715337058045,-1027.27,0.00027397,4]
[326768086,1715337058055,-5057.16,0.00027397,4]
[326768087,1715337058064,-884.6,0.00027397,4]
[326768088,1715337058073,-151.0,0.00027397,5]
[326768089,1715337058083,-1987.19,0.00027397,4]
[326768090,1715337058092,-760.98,0.00027397,4]
[326768091,1715337058101,-500.0,0.00027397,4]
[326768092,1715337058110,-33110.7,0.00027397,4]
[326768093,1715337058119,-1028.48,0.00027397,4]
[326768094,1715337058129,-6981.45,0.00027397,4]
[326768095,1715337058138,-500.0,0.00027397,4]
[326768096,1715337058147,-1907.84,0.00027397,4]
[326768097,1715337058156,-508.45126721,0.00027397,4]
[326768098,1715337058165,-500.0,0.00027397,4]
[326768099,1715337058174,-574.53,0.00027397,4]
[326768100,1715337058184,-500.0,0.00027397,4]
[326768101,1715337058193,-577.01,0.00027397,4]
[326768102,1715337058203,-1501.25,0.00027397,4]
[326768103,1715337058212,-2796.61,0.00027397,4]
[326768104,1715337058221,-966.97,0.00027397,4]
[326768105,1715337058231,-753.3,0.00027397,4]
[326768106,1715337058241,-1584.09,0.00027397,4]
[326768107,1715337058250,-5144.45,0.00027397,4]
[326768108,1715337058260,-2653.75,0.00027397,4]
[326768109,1715337058270,-500.0,0.00027397,4]
[326768110,1715337058280,-9292.31,0.00027397,4]
[326768111,1715337058291,-2032.63,0.00027397,4]
[326768112,1715337058300,-2190.27,0.00027397,4]
[326768113,1715337058309,-500.0,0.00027397,4]
[326768114,1715337058319,-680.83,0.00027397,4]
[326768115,1715337058329,-1064.47,0.00027397,4]
[326768116,1715337058338,-500.0,0.00027397,4]
[326768117,1715337058347,-519.19,0.00027397,4]
[326768118,1715337058357,-500.0,0.00027397,4]
[326768119,1715337058367,-1124.88,0.00027397,4]
[326768120,1715337058376,-500.0,0.00027397,2]
[326768121,1715337058385,-500.0,0.00027397,4]
[326768122,1715337058395,-12610.31,0.00027397,4]
[326768123,1715337058404,-500.0,0.00027397,4]
[326768124,1715337058414,-2419.13,0.00027397,4]
[326768125,1715337058423,-983.69,0.00027397,4]
[326768126,1715337058432,-500.0,0.00027397,4]
[326768127,1715337058441,-500.0,0.00027397,4]
[326768128,1715337058450,-843.05,0.00027397,4]
[326768129,1715337058459,-500.0,0.00027397,4]
[326768130,1715337058468,-2459.01,0.00027397,4]
[326768131,1715337058478,-1156.7,0.00027397,4]
[326768132,1715337058487,-7721.13,0.00027397,4]
[326768133,1715337058496,-5659.11,0.00027397,4]
[326768134,1715337058505,-500.0,0.00027397,4]
[326768135,1715337058514,-5888.06,0.00027397,4]
[326768136,1715337058524,-500.0,0.00027397,4]
[326768137,1715337058534,-787.62,0.00027397,4]
[326768138,1715337058543,-3610.56,0.00027397,4]
[326768139,1715337058552,-504.96,0.00027397,4]
[326768140,1715337058562,-1137.49,0.00027397,4]
[326768141,1715337058571,-505.97229733,0.00027397,4]
[326768142,1715337058583,-989.22,0.00027397,4]
[326768143,1715337058593,-500.0,0.00027397,4]
[326768144,1715337058603,-2025.95,0.00027397,4]
[326768145,1715337058615,-2636.03,0.00027397,4]
[326768146,1715337058624,-507.29,0.00027397,4]
[326768147,1715337058634,-773.17,0.00027397,2]
[326768148,1715337058643,-561.2,0.00027397,4]
[326768149,1715337058652,-2462.19,0.00027397,4]
[326768150,1715337058662,-151.0,0.00027397,7]
[326768151,1715337058673,-3162.34,0.00027397,4]
[326768152,1715337058683,-151.0,0.00027397,7]
[326768153,1715337058694,-151.0,0.00027397,7]
[326768154,1715337058703,-151.0,0.00027397,7]
[326768155,1715337058713,-151.0,0.00027397,7]
[326768156,1715337058722,-10578.69,0.00027397,4]
[326768157,1715337058734,-1938.07,0.00027397,4]
[326768158,1715337058745,-1671.4,0.00027397,4]
[326768159,1715337058754,-176.058292,0.00027397,7]
[326768160,1715337058764,-565.09,0.00027397,4]
[326768161,1715337058774,-702.11,0.00027397,4]
[326768162,1715337058783,-1059.58,0.00027397,4]
[326768163,1715337058793,-500.0,0.00027397,4]
[326768164,1715337058803,-500.0,0.00027397,4]
[326768165,1715337058815,-4328.7,0.00027397,4]
[326768166,1715337058826,-539.9333161,0.00027397,4]
[326768167,1715337058835,-1384.25,0.00027397,4]
[326768168,1715337058844,-500.0,0.00027397,4]
[326768169,1715337058853,-1667.52,0.00027397,4]
[326768170,1715337058863,-595.36,0.00027397,4]
[326768171,1715337058872,-1354.94,0.00027397,4]
[326768172,1715337058882,-1298.99,0.00027397,4]
[326768173,1715337058891,-2342.52,0.00027397,4]
[326768174,1715337058903,-1147.55,0.00027397,4]
[326768175,1715337058911,-500.0,0.00027397,4]
[326768176,1715337058922,-901.98,0.00027397,4]
[326768177,1715337058931,-5084.92,0.00027397,4]
[326768178,1715337058939,-500.0,0.00027397,4]
[326768179,1715337058948,-659.68,0.00027397,4]
[326768180,1715337058958,-2050.9,0.00027397,4]
[326768181,1715337058966,-500.0,0.00027397,4]
[326768182,1715337058976,-500.0,0.00027397,4]
[326768183,1715337058985,-1736.84,0.00027397,4]
[326768184,1715337058994,-500.0,0.00027397,4]
[326768185,1715337059002,-619.57,0.00027397,4]
[326768186,1715337059012,-748.05,0.00027397,4]
[326768187,1715337059021,-618.53,0.00027397,4]
[326768188,1715337059031,-500.0,0.00027397,4]
[326768189,1715337059041,-13999.15,0.00027397,4]
[326768190,1715337059050,-2535.32,0.00027397,4]
[326768191,1715337059059,-2950.58,0.00027397,4]
[326768192,1715337059068,-954.46,0.00027397,4]
[326768193,1715337059078,-500.0,0.00027397,4]
[326768194,1715337059088,-1834.17,0.00027397,4]
[326768195,1715337059098,-35869.36,0.00027397,4]
[326768196,1715337059109,-623.28,0.00027397,4]
[326768197,1715337059118,-18420.12,0.00027397,4]
[326768198,1715337059128,-646.19,0.00027397,4]
[326768199,1715337059137,-653.74,0.00027397,4]
[326768200,1715337059146,-500.0,0.00027397,4]
[326768201,1715337059155,-1497.1,0.00027397,4]
[326768202,1715337059165,-500.0,0.00027397,4]
[326768203,1715337059174,-517.59188937,0.00027397,4]
[326768204,1715337059183,-1876.5,0.00027397,4]
[326768205,1715337059192,-4328.84,0.00027397,4]
[326768206,1715337059201,-4820.15,0.00027397,4]
[326768207,1715337059210,-500.0,0.00027397,4]
[326768208,1715337059219,-1313.3,0.00027397,4]
[326768209,1715337059228,-500.0,0.00027397,4]
[326768210,1715337059238,-2055.03,0.00027397,4]
[326768211,1715337059247,-500.0,0.00027397,4]
[326768212,1715337059256,-3361.68,0.00027397,4]
[326768213,1715337059265,-3462.46,0.00027397,4]
[326768214,1715337059345,-278.47888001,0.00027397,4]
[326768215,1715337059355,-1671.57,0.00027397,4]
[326768216,1715337059363,-500.0,0.00027397,4]
[326768217,1715337059372,-500.0,0.00027397,4]
[326768218,1715337059381,-500.0,0.00027397,4]
[326768219,1715337059390,-1664.6,0.00027397,4]
[326768220,1715337059399,-2189.24,0.00027397,4]
[326768221,1715337059409,-652.36,0.00027397,4]
[326768222,1715337059418,-1719.19,0.00027397,4]
[326768223,1715337059427,-1615.04,0.00027397,4]
[326768224,1715337059436,-3121.67,0.00027397,4]
[326768225,1715337059446,-2884.17,0.00027397,4]
[326768226,1715337059454,-500.0,0.00027397,4]
[326768227,1715337059463,-151.0,0.00027397,7]
[326768228,1715337059472,-151.0,0.00027397,7]
[326768229,1715337059481,-1101.58,0.00027397,4]
[326768230,1715337059490,-163.862186,0.00027397,7]
[326768231,1715337059499,-716.38,0.00027397,4]
[326768232,1715337059508,-500.0,0.00027397,4]
[326768233,1715337059517,-500.0,0.00027397,4]
[326768234,1715337059526,-2388.29,0.00027397,4]
[326768235,1715337059536,-2891.09,0.00027397,4]
[326768236,1715337059545,-500.0,0.00027397,4]
[326768237,1715337059554,-828.08,0.00027397,4]
[326768238,1715337059563,-5000.0,0.00027397,4]
[326768239,1715337059572,-761.6,0.00027397,4]
[326768240,1715337059581,-1312.58,0.00027397,4]
[326768241,1715337059591,-590.48,0.00027397,4]
[326768242,1715337059600,-2511.32,0.00027397,4]
[326768243,1715337059609,-2973.78,0.00027397,4]
[326768244,1715337059618,-500.0,0.00027397,4]
[326768245,1715337059629,-506.36227646,0.00027397,4]
[326768246,1715337059639,-9003.1,0.00027397,4]
[326768247,1715337059648,-5880.03,0.00027397,4]
[326768248,1715337059657,-632.41,0.00027397,4]
[326768249,1715337059666,-738.56,0.00027397,4]
[326768250,1715337059676,-848.78,0.00027397,4]
[326768251,1715337059685,-848.78,0.00027397,5]
[326768252,1715337059694,-848.78,0.00027397,6]
[326768253,1715337059703,-848.78,0.00027397,7]
[326768254,1715337059712,-848.78,0.00027397,8]
[326768255,1715337059722,-831.4,0.00027397,4]
[326768256,1715337059734,-848.78,0.00027397,9]
[326768257,1715337059743,-1202.22,0.00027397,4]
[326768258,1715337059752,-848.78,0.00027397,10]
[326768259,1715337059762,-848.78,0.00027397,11]
[326768260,1715337059772,-848.78,0.00027397,12]
[326768261,1715337059782,-848.78,0.00027397,13]
[326768262,1715337059791,-848.78,0.00027397,14]
[326768263,1715337059801,-848.78,0.00027397,15]
[326768264,1715337059813,-848.78,0.00027397,16]
[326768265,1715337059822,-1304.96,0.00027397,4]
[326768266,1715337059831,-848.78,0.00027397,17]
[326768267,1715337059843,-848.78,0.00027397,18]
[326768268,1715337059854,-2234.55,0.00027397,4]
[326768269,1715337059864,-848.78,0.00027397,19]
[326768270,1715337059874,-848.78,0.00027397,20]
[326768271,1715337059884,-848.78,0.00027397,21]
[326768272,1715337059893,-848.78,0.00027397,22]
[326768273,1715337059902,-503.95689139,0.00027397,4]
[326768274,1715337059911,-848.78,0.00027397,23]
[326768275,1715337059920,-848.78,0.00027397,23]
[326768276,1715337059929,-848.78,0.00027397,23]
[326768277,1715337059938,-848.78,0.00027397,23]
[326768278,1715337059947,-848.83264029,0.00027397,23]
[326768279,1715337059956,-4801.71,0.00027397,4]
[326768280,1715337059965,-2563.92,0.00027397,4]
[326768281,1715337059974,-503.74793788,0.00027397,4]
[326768282,1715337059983,-3554.19,0.00027397,4]
[326768283,1715337059992,-3057.8,0.00027397,4]
[326768284,1715337060001,-788.63,0.00027397,4]
[326768285,1715337060010,-727.32,0.00027397,4]
[326768286,1715337060019,-1657.95,0.00027397,4]
[326768287,1715337060028,-552.75779585,0.00027397,4]
[326768288,1715337060038,-5199.78,0.00027397,4]
[326768289,1715337060047,-500.0,0.00027397,4]
[326768290,1715337060056,-500.0,0.00027397,4]
[326768291,1715337060065,-500.0,0.00027397,4]
[326768292,1715337060075,-1137.75,0.00027397,4]
[326768293,1715337060084,-500.0,0.00027397,4]
[326768294,1715337060093,-2282.38,0.00027397,4]
[326768295,1715337060102,-2182.52,0.00027397,4]
[326768296,1715337060111,-500.0,0.00027397,4]
[326768297,1715337060120,-505.81595775,0.00027397,4]
[326768298,1715337060129,-583.56,0.00027397,4]
[326768299,1715337060138,-500.0,0.00027397,4]
[326768300,1715337060147,-1683.2,0.00027397,4]
[326768301,1715337060156,-500.0,0.00027397,4]
[326768302,1715337060164,-500.0,0.00027397,4]
[326768303,1715337060174,-500.0,0.00027397,4]
[326768304,1715337060183,-2643.99,0.00027397,4]
[326768305,1715337060192,-2064.74,0.00027397,4]
[326768306,1715337060201,-500.0,0.00027397,4]
[326768307,1715337060210,-500.0,0.00027397,4]
[326768308,1715337060219,-778.98,0.00027397,4]
[326768309,1715337060228,-4604.99,0.00027397,4]
[326768310,1715337060237,-506.26510595,0.00027397,4]
[326768311,1715337060246,-500.0,0.00027397,4]
[326768312,1715337060255,-500.0,0.00027397,4]
[326768313,1715337060264,-500.0,0.00027397,4]
[326768314,1715337060273,-505.74832773,0.00027397,4]
[326768315,1715337060283,-1574.73,0.00027397,4]
[326768316,1715337060292,-500.0,0.00027397,4]
[326768317,1715337060301,-1331.2,0.00027397,4]
[326768318,1715337060310,-2453.31,0.00027397,4]
[326768319,1715337060321,-1150.188726,0.00027397,7]
[326768320,1715337060331,-1150.188726,0.00027397,7]
[326768321,1715337060341,-7202.45,0.00027397,4]
[326768322,1715337060352,-500.0,0.00027397,4]
[326768323,1715337060363,-1150.188726,0.00027397,7]
[326768324,1715337060372,-1150.188726,0.00027397,7]
[326768325,1715337060383,-505.89279146,0.00027397,4]
[326768326,1715337060392,-1150.188726,0.00027397,7]
[326768327,1715337060401,-712.75,0.00027397,4]
[326768328,1715337060410,-2833.73,0.00027397,4]
[326768329,1715337060418,-677.79,0.00027397,4]
[326768330,1715337060428,-500.0,0.00027397,4]
[326768331,1715337060437,-151.0,0.00027397,7]
[326768332,1715337060447,-151.0,0.00027397,7]
[326768333,1715337060456,-1150.188726,0.00027397,7]
[326768334,1715337060465,-1873.23,0.00027397,4]
[326768335,1715337060474,-151.0,0.00027397,7]
[326768336,1715337060484,-1150.188726,0.00027397,7]
[326768337,1715337060493,-151.0,0.00027397,7]
[326768338,1715337060502,-1150.188726,0.00027397,7]
[326768339,1715337060512,-218.952244,0.00027397,7]
[326768340,1715337060521,-1150.188726,0.00027397,7]
[326768341,1715337060530,-1150.188724,0.00027397,7]
[326768342,1715337060540,-511.91059487,0.00027397,4]
[326768343,1715337060549,-500.0,0.00027397,4]
[326768344,1715337060559,-534.06545652,0.00027397,4]
[326768345,1715337060568,-2295.32,0.00027397,4]
[326768346,1715337060578,-3536.38,0.00027397,4]
[326768347,1715337060588,-2206.94,0.00027397,4]
[326768348,1715337060597,-1472.39,0.00027397,4]
[326768349,1715337060606,-1212.53,0.00027397,4]
[326768350,1715337060615,-801.27,0.00027397,4]
[326768351,1715337060624,-2147.31,0.00027397,4]
[326768352,1715337060634,-1637.87,0.00027397,4]
[326768353,1715337060643,-1023.45,0.00027397,4]
[326768354,1715337060653,-500.0,0.00027397,4]
[326768355,1715337060662,-500.0,0.00027397,4]
[326768356,1715337060671,-500.0,0.00027397,4]
[326768357,1715337060680,-500.0,0.00027397,4]
[326768358,1715337060689,-500.0,0.00027397,4]
[326768359,1715337060699,-5554.2,0.00027397,4]
[326768360,1715337060708,-698.33,0.00027397,4]
[326768361,1715337060717,-505.26644868,0.00027397,4]
[326768362,1715337060728,-6403.19,0.00027397,4]
[326768363,1715337060741,-1806.2,0.00027397,4]
[326768364,1715337060751,-500.0,0.00027397,4]
[326768365,1715337060761,-500.0,0.00027397,4]
[326768366,1715337060771,-2384.96,0.00027397,4]
[326768367,1715337060781,-808.2,0.00027397,4]
[326768368,1715337060790,-3341.85,0.00027397,4]
[326768369,1715337060798,-500.0,0.00027397,4]
[326768370,1715337060809,-500.0,0.00027397,4]
[326768371,1715337060818,-500.0,0.00027397,4]
[326768372,1715337060827,-500.0,0.00027397,4]
[326768373,1715337060836,-622.76287319,0.00027397,4]
[326768374,1715337060845,-4036.77,0.00027397,4]
[326768375,1715337060855,-3481.08,0.00027397,4]
[326768376,1715337060864,-518.62192818,0.00027397,4]
[326768377,1715337060873,-7268.12,0.00027397,4]
[326768378,1715337060882,-502.83535949,0.00027397,4]
[326768379,1715337060891,-526.11,0.00027397,4]
[326768380,1715337060900,-567.13,0.00027397,4]
[326768381,1715337060910,-500.0,0.00027397,4]
[326768382,1715337060919,-155.36021951,0.00027397,2]
[326768383,1715337060928,-1536.23,0.00027397,4]
[326768384,1715337060937,-759.31,0.00027397,4]
[326768385,1715337060946,-3893.28,0.00027397,4]
[326768386,1715337060955,-768.82,0.00027397,4]
[326768387,1715337060963,-8675.95,0.00027397,4]
[326768388,1715337060972,-500.0,0.00027397,4]
[326768389,1715337060981,-511.93720325,0.00027397,4]
[326768390,1715337060990,-6068.54,0.00027397,4]
[326768391,1715337060999,-2420.82,0.00027397,4]
[326768392,1715337061008,-2955.7,0.00027397,4]
[326768393,1715337061018,-500.0,0.00027397,2]
[326768394,1715337061028,-506.1297667,0.00027397,4]
[326768395,1715337061038,-555.18,0.00027397,4]
[326768396,1715337061048,-1147.82,0.00027397,4]
[326768397,1715337061057,-1638.67,0.00027397,4]
[326768398,1715337061066,-151.0,0.00027397,7]
[326768399,1715337061075,-151.0,0.00027397,7]
[326768400,1715337061083,-151.0,0.00027397,7]
[326768401,1715337061092,-500.0,0.00027397,4]
[326768402,1715337061101,-1391.69,0.00027397,4]
[326768403,1715337061110,-25715.46,0.00027397,4]
[326768404,1715337061120,-508.29070585,0.00027397,4]
[326768405,1715337061129,-151.0,0.00027397,7]
[326768406,1715337061139,-151.0,0.00027397,7]
[326768407,1715337061148,-1177.44,0.00027397,4]
[326768408,1715337061158,-503.81237215,0.00027397,4]
[326768409,1715337061168,-1769.7,0.00027397,4]
[326768410,1715337061177,-500.0,0.00027397,4]
[326768411,1715337061187,-507.84728022,0.00027397,4]
[326768412,1715337061197,-535.04708924,0.00027397,4]
[326768413,1715337061207,-500.0,0.00027397,4]
[326768414,1715337061218,-806.61,0.00027397,4]
[326768415,1715337061229,-2391.66,0.00027397,4]
[326768416,1715337061238,-719.79,0.00027397,4]
[326768417,1715337061248,-508.34473847,0.00027397,4]
[326768418,1715337061257,-500.0,0.00027397,4]
[326768419,1715337061266,-1893.75,0.00027397,4]
[326768420,1715337061275,-544.64,0.00027397,4]
[326768421,1715337061285,-647.7,0.00027397,4]
[326768422,1715337061295,-508.71635679,0.00027397,4]
[326768423,1715337061304,-507.23654422,0.00027397,4]
[326768424,1715337061313,-796.73,0.00027397,4]
[326768425,1715337061322,-500.0,0.00027397,4]
[326768426,1715337061332,-800.69,0.00027397,4]
[326768427,1715337061341,-500.0,0.00027397,4]
[326768428,1715337061350,-611.73,0.00027397,4]
[326768429,1715337061359,-567.7,0.00027397,4]
[326768430,1715337061368,-4189.24,0.00027397,4]
[326768431,1715337061378,-662.25,0.00027397,4]
[326768432,1715337061387,-505.22469182,0.00027397,4]
[326768433,1715337061396,-500.0,0.00027397,4]
[326768434,1715337061406,-500.0,0.00027397,4]
[326768435,1715337061415,-1138.58,0.00027397,4]
[326768436,1715337061425,-598.01,0.00027397,4]
[326768437,1715337061434,-548.45,0.00027397,4]
[326768438,1715337061443,-2722.96,0.00027397,4]
[326768439,1715337061452,-509.69968481,0.00027397,4]
[326768440,1715337061461,-2933.99,0.00027397,4]
[326768441,1715337061471,-507.41273209,0.00027397,4]
[326768442,1715337061480,-978.47,0.00027397,2]
[326768443,1715337061489,-969.26,0.00027397,4]
[326768444,1715337061499,-1524.15,0.00027397,4]
[326768445,1715337061508,-505.56398481,0.00027397,4]
[326768446,1715337061519,-2125.79,0.00027397,4]
[326768447,1715337061531,-584.758941,0.00027397,7]
[326768448,1715337061542,-1956.3,0.00027397,4]
[326768449,1715337061552,-500.0,0.00027397,4]
[326768450,1715337061562,-500.0,0.00027397,4]
[326768451,1715337061571,-500.0,0.00027397,4]
[326768452,1715337061580,-584.758941,0.00027397,7]
[326768453,1715337061590,-584.758941,0.00027397,7]
[326768454,1715337061599,-150.0,0.00027397,7]
[326768455,1715337061608,-162.86613639,0.00027397,7]
[326768456,1715337061618,-150.16,0.00027397,2]
[326768457,1715337061627,-151.0,0.00027397,7]
[326768458,1715337061636,-151.0,0.00027397,7]
[326768459,1715337061646,-151.0,0.00027397,7]
[326768460,1715337061655,-180.6,0.00027397,7]
[326768461,1715337061665,-506.63,0.00027397,10]
[326768462,1715337061675,-422.19,0.00027397,10]
[326768463,1715337061684,-156.30855657,0.000274,2]
[326768464,1715337061693,-665.67,0.000274,2]
[326768465,1715337061702,-502.0,0.000274,2]
[326768466,1715337061711,-838.7195652,0.000274,2]
[326768467,1715337061719,-2000.0,0.000274,2]
[326768468,1715337061731,-749.96678565,0.000274,2]
[326768469,1715337061742,-500.0,0.000274,2]
[326768470,1715337061751,-250.0,0.000274,2]
[326768471,1715337061761,-200.0,0.0002743,2]
[326768472,1715337061770,-200.0,0.0002743,7]
[326768473,1715337061781,-500.0,0.0002743,2]
[326768474,1715337061790,-200.0,0.00027431,2]
[326768475,1715337061800,-1000.0,0.00027431,10]
[326768476,1715337061809,-200.0,0.00027431,7]
[326768477,1715337061820,-500.0,0.00027431,2]
[326768478,1715337061830,-500.0,0.00027431,2]
[326768479,1715337061840,-200.0,0.00027431,2]
[326768480,1715337061849,-167.0,0.00027432,2]
[326768481,1715337061858,-686.8984,0.00027514,2]
[326768482,1715337061867,-187.57725276,0.00027584,2]
[326768483,1715337061876,-160.0,0.000276,2]
[326768484,1715337061886,-702.53,0.000276,2]
[326768485,1715337061896,-150.0,0.000276,5]
[326768486,1715337061905,-2145.65779741,0.00027643,4]
[326768487,1715337061915,-500.0,0.00027643,2]
[326768488,1715337061924,-500.0,0.00027643,2]
[326768489,1715337061934,-500.0,0.00027643,2]
[326768490,1715337061943,-500.0,0.00027643,2]
[326768491,1715337061953,-500.0,0.00027643,2]
[326768492,1715337061962,-500.0,0.00027643,2]
[326768493,1715337061971,-500.0,0.00027643,2]
[326768494,1715337061980,-500.0,0.00027643,2]
[326768495,1715337061991,-500.0,0.00027643,2]
[326768496,1715337062000,-500.0,0.00027643,2]
[326768497,1715337062009,-500.0,0.00027643,2]
[326768498,1715337062018,-500.0,0.00027643,2]
[326768499,1715337062028,-500.0,0.00027643,2]
[326768500,1715337062037,-500.0,0.00027643,2]
[326768501,1715337062047,-500.0,0.00027643,2]
[326768502,1715337062056,-500.0,0.00027643,2]
[326768503,1715337062065,-500.0,0.00027643,2]
[326768504,1715337062074,-500.0,0.00027643,2]
[326768505,1715337062083,-500.0,0.00027643,2]
[326768506,1715337062093,-500.0,0.00027643,2]
[326768507,1715337062102,-500.0,0.00027643,2]
[326768508,1715337062111,-500.0,0.00027643,2]
[326768509,1715337062121,-500.0,0.00027643,2]
[326768510,1715337062130,-500.0,0.00027643,2]
[326768511,1715337062139,-500.0,0.00027643,2]
[326768512,1715337062148,-500.0,0.00027643,2]
[326768513,1715337062158,-500.0,0.00027643,2]
[326768514,1715337062168,-500.0,0.00027643,2]
[326768515,1715337062177,-539.2377404,0.0002765,2]